[Event "Late-Titled-Tuesday-Blitz-June-18-2024"]
[Site "Chess.com"]
[Date "2024.06.18"]
[Round "5"]
[White "kikoveiga"]
[Black "Beaterawn"]
[Result "1-0"]
[WhiteElo "2720"]
[BlackElo "2373"]
[TimeControl "180+1"]
[EndTime "14:58:52 PDT"]
[Termination "kikoveiga won by resignation"]

1. d4 {[%clk 0:03:00.9]} 1... f5 {[%clk 0:02:59.6]} 2. Nc3 {[%clk 0:02:59.8]}
2... Nf6 {[%clk 0:02:59.5]} 3. Bg5 {[%clk 0:02:59.5]} 3... d5 {[%clk 0:02:59.4]}
4. e3 {[%clk 0:02:59.9]} 4... e6 {[%clk 0:02:59.6]} 5. Qf3 {[%clk 0:02:58.1]}
5... Be7 {[%clk 0:02:59.1]} 6. Bd3 {[%clk 0:02:57.9]} 6... O-O {[%clk
0:02:59.4]} 7. h4 {[%clk 0:02:57.9]} 7... Ne4 {[%clk 0:02:58.4]} 8. Bxe7 {[%clk
0:02:55.8]} 8... Qxe7 {[%clk 0:02:59.3]} 9. Nge2 {[%clk 0:02:53.9]} 9... c5
{[%clk 0:02:58.9]} 10. dxc5 {[%clk 0:02:53]} 10... Nc6 {[%clk 0:02:58.2]} 11.
Bxe4 {[%clk 0:02:34.5]} 11... fxe4 {[%clk 0:02:56.1]} 12. Qg3 {[%clk 0:02:35]}
12... Qxc5 {[%clk 0:02:51.4]} 13. h5 {[%clk 0:02:34.5]} 13... e5 {[%clk
0:02:40.8]} 14. h6 {[%clk 0:02:26.1]} 14... g6 {[%clk 0:02:40]} 15. O-O {[%clk
0:02:24.1]} 15... Be6 {[%clk 0:02:35.2]} 16. Rad1 {[%clk 0:02:22]} 16... Rad8
{[%clk 0:02:32.7]} 17. Rd2 {[%clk 0:02:21.6]} 17... b5 {[%clk 0:02:21.7]} 18. a3
{[%clk 0:02:11.2]} 18... a5 {[%clk 0:02:20.6]} 19. Rfd1 {[%clk 0:01:51.6]} 19...
b4 {[%clk 0:02:17.8]} 20. axb4 {[%clk 0:01:46.9]} 20... axb4 {[%clk 0:02:18.7]}
21. Na2 {[%clk 0:01:45.8]} 21... Qe7 {[%clk 0:01:45.8]} 22. Nac1 {[%clk
0:01:44]} 22... Rf5 {[%clk 0:01:37.7]} 23. c3 {[%clk 0:01:28.4]} 23... Rdf8
{[%clk 0:01:33.2]} 24. Rf1 {[%clk 0:01:11.8]} 24... Rg5 {[%clk 0:01:29.8]} 25.
Qh2 {[%clk 0:01:10.7]} 25... Rh5 {[%clk 0:01:28.6]} 26. Qg3 {[%clk 0:01:10.9]}
26... Rff5 {[%clk 0:01:24.1]} 27. f4 {[%clk 0:01:07.9]} 27... exf3 {[%clk
0:01:20.8]} 28. Rxf3 {[%clk 0:01:07.8]} 28... Rhg5 {[%clk 0:01:08.7]} 29. Qf2
{[%clk 0:01:04.8]} 29... Qf6 {[%clk 0:00:47.7]} 30. Rxf5 {[%clk 0:00:42.8]}
30... gxf5 {[%clk 0:00:46.8]} 31. cxb4 {[%clk 0:00:35.4]} 31... Nxb4 {[%clk
0:00:41.8]} 32. Nd3 {[%clk 0:00:24.8]} 32... Nxd3 {[%clk 0:00:31]} 33. Rxd3
{[%clk 0:00:25.7]} 33... d4 {[%clk 0:00:08.7]} 34. exd4 {[%clk 0:00:24.6]} 34...
Bd5 {[%clk 0:00:08.9]} 35. Rg3 {[%clk 0:00:23.9]} 35... f4 {[%clk 0:00:07.1]}
36. Rxg5+ {[%clk 0:00:23.7]} 36... Qxg5 {[%clk 0:00:08]} 37. dxe5 {[%clk
0:00:19.5]} 37... f3 {[%clk 0:00:08.3]} 38. Nc3 {[%clk 0:00:15.9]} 38... Qc1+
{[%clk 0:00:07.7]} 39. Qf1 {[%clk 0:00:14.2]} 39... Qxf1+ {[%clk 0:00:07.7]} 40.
Kxf1 {[%clk 0:00:14.5]} 40... fxg2+ {[%clk 0:00:08.6]} 41. Kg1 {[%clk
0:00:14.4]} 41... Bb7 {[%clk 0:00:09.4]} 42. Nb5 {[%clk 0:00:10]} 42... Kf8
{[%clk 0:00:05.1]} 43. Nd6 {[%clk 0:00:10.9]} 43... Bc6 {[%clk 0:00:05.2]} 44.
b4 {[%clk 0:00:11.1]} 44... Ke7 {[%clk 0:00:04.5]} 45. b5 {[%clk 0:00:11.6]}
45... Bd5 {[%clk 0:00:04.9]} 46. b6 {[%clk 0:00:12.1]} 46... Kd7 {[%clk
0:00:05.2]} 47. b7 {[%clk 0:00:11.4]} 47... Kc7 {[%clk 0:00:05.7]} 48. Ne8+
{[%clk 0:00:08.3]} 48... Kxb7 {[%clk 0:00:05.2]} 49. Nf6 {[%clk 0:00:09.2]}
49... Bf7 {[%clk 0:00:03.4]} 50. Nxh7 {[%clk 0:00:09.5]} 50... Kc7 {[%clk
0:00:03]} 51. Ng5 {[%clk 0:00:10.4]} 51... Bg8 {[%clk 0:00:03.2]} 52. Kxg2
{[%clk 0:00:09.7]} 52... Kd7 {[%clk 0:00:03.2]} 53. Kg3 {[%clk 0:00:10.6]} 53...
Ke7 {[%clk 0:00:03.2]} 54. Kf4 {[%clk 0:00:11.5]} 54... Kf8 {[%clk 0:00:02.2]}
55. h7 {[%clk 0:00:11.8]} 55... Bxh7 {[%clk 0:00:02.8]} 56. Nxh7+ {[%clk
0:00:12.7]} 56... Kg7 {[%clk 0:00:03.6]} 57. Ng5 {[%clk 0:00:13.3]} 57... Kg6
{[%clk 0:00:04.1]} 58. e6 {[%clk 0:00:13.2]} 58... Kf6 {[%clk 0:00:04.6]} 59.
Ke4 {[%clk 0:00:12.9]} 59... Ke7 {[%clk 0:00:05.5]} 60. Ke5 {[%clk 0:00:13.3]}
60... Ke8 {[%clk 0:00:06.4]} 61. Kd6 {[%clk 0:00:13.9]} 61... Kf8 {[%clk
0:00:07.3]} 62. Kd7 {[%clk 0:00:14.3]} 62... Kg7 {[%clk 0:00:07.6]} 63. e7
{[%clk 0:00:15.2]} 63... Kg6 {[%clk 0:00:08.2]} 64. e8=Q+ {[%clk 0:00:16.1]}
64... Kxg5 {[%clk 0:00:09.1]} 65. Qf8 {[%clk 0:00:16.8]} 65... Kg6 {[%clk
0:00:09.4]} 66. Ke6 {[%clk 0:00:17.7]} 66... Kg5 {[%clk 0:00:10.2]} 67. Qf3
{[%clk 0:00:17.4]} 1-0

[Event "Late-Titled-Tuesday-Blitz-June-18-2024"]
[Site "Chess.com"]
[Date "2024.06.18"]
[Round "5"]
[White "divudis17"]
[Black "esskeettit"]
[Result "0-1"]
[WhiteElo "2334"]
[BlackElo "2515"]
[TimeControl "180+1"]
[EndTime "14:58:54 PDT"]
[Termination "esskeettit won by resignation"]

1. Nf3 {[%clk 0:03:00.9]} 1... d5 {[%clk 0:02:56.3]} 2. e3 {[%clk 0:02:58.3]}
2... Nf6 {[%clk 0:02:56.8]} 3. c4 {[%clk 0:02:57.6]} 3... e6 {[%clk 0:02:56.4]}
4. Nc3 {[%clk 0:02:56.9]} 4... Be7 {[%clk 0:02:56.2]} 5. b3 {[%clk 0:02:55.4]}
5... O-O {[%clk 0:02:56.1]} 6. Bb2 {[%clk 0:02:55.8]} 6... b6 {[%clk 0:02:56.2]}
7. cxd5 {[%clk 0:02:52]} 7... exd5 {[%clk 0:02:52.8]} 8. d4 {[%clk 0:02:51.5]}
8... c5 {[%clk 0:02:46]} 9. Be2 {[%clk 0:02:43.6]} 9... Nc6 {[%clk 0:02:42.1]}
10. O-O {[%clk 0:02:42.8]} 10... Bb7 {[%clk 0:02:29.6]} 11. dxc5 {[%clk
0:02:11.7]} 11... bxc5 {[%clk 0:02:23]} 12. Rc1 {[%clk 0:01:55.7]} 12... Rc8
{[%clk 0:02:04]} 13. Qd2 {[%clk 0:01:31.5]} 13... Qd7 {[%clk 0:01:46.5]} 14.
Rfd1 {[%clk 0:01:30.7]} 14... Rfd8 {[%clk 0:01:47]} 15. h3 {[%clk 0:01:23.3]}
15... Qf5 {[%clk 0:01:27]} 16. Bd3 {[%clk 0:01:10.7]} 16... Qh5 {[%clk
0:01:26.2]} 17. Qe2 {[%clk 0:01:02.3]} 17... Nb4 {[%clk 0:01:13.9]} 18. Bb5
{[%clk 0:00:49.9]} 18... a6 {[%clk 0:01:10.6]} 19. Ba4 {[%clk 0:00:50]} 19...
Nc6 {[%clk 0:00:44.2]} 20. Rc2 {[%clk 0:00:43]} 20... Bd6 {[%clk 0:00:36.2]} 21.
Rcd2 {[%clk 0:00:42.4]} 21... Ne7 {[%clk 0:00:36]} 22. Nh2 {[%clk 0:00:25.1]}
22... Qe5 {[%clk 0:00:13.8]} 23. Nf3 {[%clk 0:00:25.5]} 23... Qe6 {[%clk
0:00:14.1]} 24. Ng5 {[%clk 0:00:17.2]} 24... Qf5 {[%clk 0:00:13.8]} 25. Nf3
{[%clk 0:00:17.3]} 25... h6 {[%clk 0:00:14]} 26. Qd3 {[%clk 0:00:17.5]} 26...
Qe6 {[%clk 0:00:13.8]} 27. Ba3 {[%clk 0:00:12.1]} 27... c4 {[%clk 0:00:12.9]}
28. bxc4 {[%clk 0:00:10.6]} 28... Bxa3 {[%clk 0:00:12.9]} 29. Nxd5 {[%clk
0:00:11.1]} 29... Bc5 {[%clk 0:00:08.4]} 30. Nxf6+ {[%clk 0:00:09.5]} 30... gxf6
{[%clk 0:00:07]} 31. Qxd8+ {[%clk 0:00:07.2]} 31... Rxd8 {[%clk 0:00:07.9]} 32.
Rxd8+ {[%clk 0:00:07.1]} 32... Kg7 {[%clk 0:00:08.5]} 33. Nd4 {[%clk 0:00:05.3]}
33... Qe4 {[%clk 0:00:07.6]} 34. Nf3 {[%clk 0:00:03.5]} 34... Ng6 {[%clk
0:00:06.8]} 35. R8d2 {[%clk 0:00:02.1]} 35... Nh4 {[%clk 0:00:06.2]} 36. Nxh4
{[%clk 0:00:02.4]} 36... Qxh4 {[%clk 0:00:07.1]} 37. Bc2 {[%clk 0:00:02.2]}
37... Qg5 {[%clk 0:00:06.8]} 38. e4 {[%clk 0:00:02.2]} 38... Bb4 {[%clk
0:00:05.2]} 39. Re2 {[%clk 0:00:02]} 39... a5 {[%clk 0:00:05.3]} 40. a3 {[%clk
0:00:01.5]} 40... Bc5 {[%clk 0:00:05.3]} 41. Rd3 {[%clk 0:00:02.4]} 41... Qe5
{[%clk 0:00:04.7]} 42. Kf1 {[%clk 0:00:02.6]} 42... Kf8 {[%clk 0:00:05.1]} 43.
Rf3 {[%clk 0:00:02.2]} 43... Qa1+ {[%clk 0:00:05.4]} 44. Re1 {[%clk 0:00:02.6]}
44... Qb2 {[%clk 0:00:05.7]} 45. Bd1 {[%clk 0:00:02.5]} 45... Qe5 {[%clk
0:00:04.9]} 46. Bc2 {[%clk 0:00:02.4]} 46... Qe6 {[%clk 0:00:05.3]} 47. Bd3
{[%clk 0:00:02.4]} 47... Bxa3 {[%clk 0:00:05.1]} 48. Rd1 {[%clk 0:00:02.9]}
48... Bb4 {[%clk 0:00:05.7]} 49. Be2 {[%clk 0:00:03.3]} 49... Bc6 {[%clk
0:00:06.1]} 50. Rfd3 {[%clk 0:00:03.4]} 50... Kg7 {[%clk 0:00:06.1]} 51. Rd8
{[%clk 0:00:04.3]} 51... Qe5 {[%clk 0:00:05.8]} 52. R8d3 {[%clk 0:00:04]} 52...
Qxe4 {[%clk 0:00:06.1]} 53. Rg3+ {[%clk 0:00:04.3]} 53... Kf8 {[%clk 0:00:05.9]}
54. Bf3 {[%clk 0:00:05.2]} 54... Qxc4+ {[%clk 0:00:05.8]} 55. Be2 {[%clk
0:00:05.7]} 55... Qc2 {[%clk 0:00:06]} 56. Rd8+ {[%clk 0:00:04]} 56... Ke7
{[%clk 0:00:06.3]} 57. Rd1 {[%clk 0:00:04.9]} 57... Ba4 {[%clk 0:00:05.7]} 58.
Re3+ {[%clk 0:00:05.3]} 58... Kf8 {[%clk 0:00:05.7]} 59. Rd8+ {[%clk 0:00:06]}
59... Kg7 {[%clk 0:00:06.1]} 60. g4 {[%clk 0:00:06.9]} 60... Qc1+ {[%clk
0:00:05.8]} 61. Kg2 {[%clk 0:00:06.5]} 61... Bc6+ {[%clk 0:00:06.4]} 62. f3
{[%clk 0:00:04.3]} 62... Qxe3 {[%clk 0:00:05.5]} 0-1

[Event "Late-Titled-Tuesday-Blitz-June-18-2024"]
[Site "Chess.com"]
[Date "2024.06.18"]
[Round "5"]
[White "AlexanderMatlak"]
[Black "th3d4rkness"]
[Result "1/2-1/2"]
[WhiteElo "2461"]
[BlackElo "2214"]
[TimeControl "180+1"]
[EndTime "14:58:58 PDT"]
[Termination "Game drawn by stalemate"]

1. c4 {[%clk 0:02:55.8]} 1... Nf6 {[%clk 0:02:57.8]} 2. Nf3 {[%clk 0:02:56]}
2... g6 {[%clk 0:02:56.5]} 3. Nc3 {[%clk 0:02:56.1]} 3... Bg7 {[%clk 0:02:56.9]}
4. g3 {[%clk 0:02:56.7]} 4... O-O {[%clk 0:02:56.7]} 5. Bg2 {[%clk 0:02:57.3]}
5... d6 {[%clk 0:02:56.4]} 6. O-O {[%clk 0:02:57.5]} 6... Nc6 {[%clk 0:02:56.3]}
7. Rb1 {[%clk 0:02:57.4]} 7... Bf5 {[%clk 0:02:55.6]} 8. d3 {[%clk 0:02:57.3]}
8... Qd7 {[%clk 0:02:53.5]} 9. Re1 {[%clk 0:02:57.4]} 9... Bh3 {[%clk
0:02:52.1]} 10. Bh1 {[%clk 0:02:57.6]} 10... e5 {[%clk 0:02:45.1]} 11. b4 {[%clk
0:02:55.7]} 11... h6 {[%clk 0:02:43.7]} 12. b5 {[%clk 0:02:56]} 12... Ne7 {[%clk
0:02:41.7]} 13. c5 {[%clk 0:02:55.4]} 13... Rac8 {[%clk 0:02:35.6]} 14. a4
{[%clk 0:02:51.8]} 14... Nfd5 {[%clk 0:02:24.9]} 15. Bb2 {[%clk 0:02:41.9]}
15... Nxc3 {[%clk 0:02:16.9]} 16. Bxc3 {[%clk 0:02:42.8]} 16... Nd5 {[%clk
0:02:16.7]} 17. Bb2 {[%clk 0:02:32.9]} 17... Rfe8 {[%clk 0:02:09.4]} 18. Qb3
{[%clk 0:02:07.8]} 18... dxc5 {[%clk 0:01:57.4]} 19. Nxe5 {[%clk 0:01:50.9]}
19... Bxe5 {[%clk 0:01:40.2]} 20. Bxd5 {[%clk 0:01:50.5]} 20... Bxb2 {[%clk
0:01:33.7]} 21. Rxb2 {[%clk 0:01:51.4]} 21... Be6 {[%clk 0:01:30]} 22. Bxe6
{[%clk 0:01:48.6]} 22... Rxe6 {[%clk 0:01:28.7]} 23. Rc2 {[%clk 0:01:34.8]}
23... b6 {[%clk 0:01:28.8]} 24. Rc4 {[%clk 0:01:34.4]} 24... c6 {[%clk
0:01:27.9]} 25. e3 {[%clk 0:01:19.5]} 25... cxb5 {[%clk 0:01:25.3]} 26. axb5
{[%clk 0:01:20.4]} 26... Rd8 {[%clk 0:01:20.7]} 27. Ra1 {[%clk 0:00:53.2]} 27...
Rd6 {[%clk 0:01:10.5]} 28. d4 {[%clk 0:00:36.5]} 28... cxd4 {[%clk 0:01:09.1]}
29. exd4 {[%clk 0:00:37.4]} 29... Rxd4 {[%clk 0:01:05.9]} 30. Rxd4 {[%clk
0:00:37.5]} 30... Qxd4 {[%clk 0:01:04.8]} 31. Rxa7 {[%clk 0:00:37.6]} 31... Qd1+
{[%clk 0:01:04.2]} 32. Qxd1 {[%clk 0:00:34.2]} 32... Rxd1+ {[%clk 0:01:04.7]}
33. Kg2 {[%clk 0:00:34.6]} 33... Rb1 {[%clk 0:01:04.7]} 34. Rb7 {[%clk
0:00:34.9]} 34... Rxb5 {[%clk 0:01:04.6]} 35. h4 {[%clk 0:00:35]} 35... h5
{[%clk 0:01:03.6]} 36. Kf3 {[%clk 0:00:32.8]} 36... Rb4 {[%clk 0:01:01.1]} 37.
Kg2 {[%clk 0:00:27.6]} 37... Kg7 {[%clk 0:01:01.4]} 38. Kf3 {[%clk 0:00:26.8]}
38... Kf6 {[%clk 0:01:01.2]} 39. Kg2 {[%clk 0:00:27.1]} 39... Ke6 {[%clk
0:01:01.4]} 40. Kf3 {[%clk 0:00:26.5]} 40... f6 {[%clk 0:01:01.6]} 41. Kg2
{[%clk 0:00:20.3]} 41... Kf5 {[%clk 0:01:01.8]} 42. Rb8 {[%clk 0:00:19.1]} 42...
Rb2 {[%clk 0:00:57.3]} 43. Rb7 {[%clk 0:00:18.5]} 43... g5 {[%clk 0:00:56.6]}
44. hxg5 {[%clk 0:00:18.1]} 44... fxg5 {[%clk 0:00:56.3]} 45. Rf7+ {[%clk
0:00:17.4]} 45... Kg6 {[%clk 0:00:56.1]} 46. Rc7 {[%clk 0:00:14]} 46... h4
{[%clk 0:00:55.8]} 47. gxh4 {[%clk 0:00:12.5]} 47... gxh4 {[%clk 0:00:55.6]} 48.
Rc8 {[%clk 0:00:12.9]} 48... b5 {[%clk 0:00:53.2]} 49. Rc6+ {[%clk 0:00:11.9]}
49... Kg5 {[%clk 0:00:53.1]} 50. Rc5+ {[%clk 0:00:12.2]} 50... Kg4 {[%clk
0:00:50.3]} 51. Rc8 {[%clk 0:00:10]} 51... h3+ {[%clk 0:00:50.4]} 52. Kg1 {[%clk
0:00:10.3]} 52... h2+ {[%clk 0:00:49]} 53. Kxh2 {[%clk 0:00:08.6]} 53... Rxf2+
{[%clk 0:00:49]} 54. Kg1 {[%clk 0:00:09.1]} 54... Rf5 {[%clk 0:00:48.6]} 55. Kg2
{[%clk 0:00:06.5]} 55... Kf4 {[%clk 0:00:48.7]} 56. Kf2 {[%clk 0:00:05.8]} 56...
Ke4+ {[%clk 0:00:47.9]} 57. Ke2 {[%clk 0:00:06.1]} 57... Kd4 {[%clk 0:00:48.1]}
58. Kd2 {[%clk 0:00:05.7]} 58... Rc5 {[%clk 0:00:46.8]} 59. Rxc5 {[%clk
0:00:03.9]} 59... Kxc5 {[%clk 0:00:46.1]} 60. Kc3 {[%clk 0:00:04.5]} 60... b4+
{[%clk 0:00:46.6]} 61. Kb3 {[%clk 0:00:04.6]} 61... Kb5 {[%clk 0:00:47.2]} 62.
Kb2 {[%clk 0:00:04.3]} 62... Kc4 {[%clk 0:00:47.6]} 63. Kc2 {[%clk 0:00:04.7]}
63... b3+ {[%clk 0:00:47.3]} 64. Kb2 {[%clk 0:00:05.1]} 64... Kb4 {[%clk
0:00:47]} 65. Kb1 {[%clk 0:00:04.4]} 65... Ka5 {[%clk 0:00:46.7]} 66. Kb2 {[%clk
0:00:04.5]} 66... Ka4 {[%clk 0:00:47.3]} 67. Kb1 {[%clk 0:00:03.5]} 67... Ka3
{[%clk 0:00:47.8]} 68. Ka1 {[%clk 0:00:03.6]} 68... Kb4 {[%clk 0:00:47.7]} 69.
Kb2 {[%clk 0:00:04]} 69... Kc4 {[%clk 0:00:48.1]} 70. Kb1 {[%clk 0:00:03.7]}
70... Kc3 {[%clk 0:00:48.7]} 71. Kc1 {[%clk 0:00:03.9]} 71... Kb4 {[%clk
0:00:46.9]} 72. Kb2 {[%clk 0:00:04.1]} 72... Ka4 {[%clk 0:00:46.9]} 73. Kb1
{[%clk 0:00:04.1]} 73... Kb5 {[%clk 0:00:47.4]} 74. Kb2 {[%clk 0:00:04.4]} 74...
Kb4 {[%clk 0:00:48]} 75. Kb1 {[%clk 0:00:04.7]} 75... Kc3 {[%clk 0:00:48.5]} 76.
Kc1 {[%clk 0:00:04.9]} 76... b2+ {[%clk 0:00:48.1]} 77. Kb1 {[%clk 0:00:05.3]}
77... Kb3 {[%clk 0:00:48.9]} 1/2-1/2

[Event "Late-Titled-Tuesday-Blitz-June-18-2024"]
[Site "Chess.com"]
[Date "2024.06.18"]
[Round "5"]
[White "chessforme17"]
[Black "Zq1"]
[Result "1-0"]
[WhiteElo "2371"]
[BlackElo "2481"]
[TimeControl "180+1"]
[EndTime "14:59:00 PDT"]
[Termination "chessforme17 won on time"]

1. Nf3 {[%clk 0:03:00.9]} 1... Nf6 {[%clk 0:02:58.3]} 2. g3 {[%clk 0:03:00.6]}
2... g6 {[%clk 0:02:57.8]} 3. Bg2 {[%clk 0:03:01.5]} 3... Bg7 {[%clk 0:02:58]}
4. O-O {[%clk 0:03:02.2]} 4... O-O {[%clk 0:02:58]} 5. c4 {[%clk 0:03:02.4]}
5... d6 {[%clk 0:02:56.7]} 6. d4 {[%clk 0:03:00]} 6... Nbd7 {[%clk 0:02:55.4]}
7. Nc3 {[%clk 0:02:58.9]} 7... e5 {[%clk 0:02:55.5]} 8. e4 {[%clk 0:02:54.1]}
8... c6 {[%clk 0:02:55]} 9. Re1 {[%clk 0:02:49]} 9... Re8 {[%clk 0:02:53.9]} 10.
Qc2 {[%clk 0:02:42.2]} 10... exd4 {[%clk 0:02:49.8]} 11. Nxd4 {[%clk 0:02:42.2]}
11... Qb6 {[%clk 0:02:49.8]} 12. Be3 {[%clk 0:02:41.9]} 12... Ng4 {[%clk
0:02:49.1]} 13. Nf5 {[%clk 0:02:33.4]} 13... Nxe3 {[%clk 0:02:47]} 14. Nxe3
{[%clk 0:02:34]} 14... a5 {[%clk 0:02:37.2]} 15. Rad1 {[%clk 0:02:31.2]} 15...
Qc7 {[%clk 0:02:30.6]} 16. Qd2 {[%clk 0:02:22.6]} 16... a4 {[%clk 0:02:29.6]}
17. Qxd6 {[%clk 0:02:22.1]} 17... Qxd6 {[%clk 0:02:28.6]} 18. Rxd6 {[%clk
0:02:22.7]} 18... a3 {[%clk 0:02:28.4]} 19. Rd2 {[%clk 0:02:04.1]} 19... axb2
{[%clk 0:02:25.6]} 20. Ned1 {[%clk 0:02:03.5]} 20... Rxa2 {[%clk 0:02:17.3]} 21.
e5 {[%clk 0:01:55]} 21... Nxe5 {[%clk 0:02:01]} 22. Kf1 {[%clk 0:01:43.3]} 22...
Be6 {[%clk 0:01:58.2]} 23. Nxb2 {[%clk 0:01:38.4]} 23... Rxb2 {[%clk 0:01:48.7]}
24. Rxb2 {[%clk 0:01:30.7]} 24... Bxc4+ {[%clk 0:01:46.6]} 25. Ne2 {[%clk
0:01:22.4]} 25... Nd3 {[%clk 0:01:41.6]} 26. Rc2 {[%clk 0:01:12.7]} 26... Bb3
{[%clk 0:01:21.8]} 27. Rcc1 {[%clk 0:00:56.6]} 27... Nxe1 {[%clk 0:01:16.7]} 28.
Kxe1 {[%clk 0:00:49.1]} 28... Bb2 {[%clk 0:01:11.7]} 29. Rb1 {[%clk 0:00:47.3]}
29... Bc3+ {[%clk 0:01:09.7]} 30. Kf1 {[%clk 0:00:46.6]} 30... Bc4 {[%clk
0:01:09.5]} 31. Bf3 {[%clk 0:00:46.9]} 31... Bxe2+ {[%clk 0:00:53.4]} 32. Bxe2
{[%clk 0:00:46.6]} 32... Re7 {[%clk 0:00:53.4]} 33. Rc1 {[%clk 0:00:45.2]} 33...
Bd4 {[%clk 0:00:53.2]} 34. h4 {[%clk 0:00:45.2]} 34... h5 {[%clk 0:00:52.5]} 35.
Rd1 {[%clk 0:00:45]} 35... c5 {[%clk 0:00:51.5]} 36. Rb1 {[%clk 0:00:44.4]}
36... Rc7 {[%clk 0:00:39.5]} 37. Bc4 {[%clk 0:00:43.4]} 37... Kg7 {[%clk
0:00:35.2]} 38. Rb6 {[%clk 0:00:43.2]} 38... Bf6 {[%clk 0:00:30.4]} 39. Kg2
{[%clk 0:00:40.9]} 39... Bd8 {[%clk 0:00:28.6]} 40. Rb5 {[%clk 0:00:36.6]} 40...
Be7 {[%clk 0:00:26]} 41. Rb6 {[%clk 0:00:35.9]} 41... Kf8 {[%clk 0:00:24.9]} 42.
f4 {[%clk 0:00:34.8]} 42... Ke8 {[%clk 0:00:23.7]} 43. Rb1 {[%clk 0:00:33.7]}
43... f5 {[%clk 0:00:20.4]} 44. Rb6 {[%clk 0:00:32.5]} 44... Kf8 {[%clk
0:00:16.7]} 45. Rxg6 {[%clk 0:00:32]} 45... Bd8 {[%clk 0:00:15.9]} 46. Rh6
{[%clk 0:00:29.8]} 46... b5 {[%clk 0:00:14.9]} 47. Bxb5 {[%clk 0:00:27.8]} 47...
c4 {[%clk 0:00:13.3]} 48. Rxh5 {[%clk 0:00:22]} 48... c3 {[%clk 0:00:11.8]} 49.
Rxf5+ {[%clk 0:00:22.6]} 49... Kg7 {[%clk 0:00:09.6]} 50. Bd3 {[%clk 0:00:19.1]}
50... c2 {[%clk 0:00:08.3]} 51. Bxc2 {[%clk 0:00:19.8]} 51... Rxc2+ {[%clk
0:00:08.3]} 52. Kf3 {[%clk 0:00:20.4]} 52... Rc3+ {[%clk 0:00:08.3]} 53. Kg4
{[%clk 0:00:20.7]} 53... Bb6 {[%clk 0:00:08.7]} 54. Rg5+ {[%clk 0:00:20.9]}
54... Kf6 {[%clk 0:00:08.1]} 55. h5 {[%clk 0:00:21.1]} 55... Kf7 {[%clk
0:00:08.4]} 56. Rg6 {[%clk 0:00:21.3]} 56... Bf2 {[%clk 0:00:07.5]} 57. Kh3
{[%clk 0:00:21.6]} 57... Rc1 {[%clk 0:00:06.1]} 58. Kg2 {[%clk 0:00:21.7]} 58...
Rc2 {[%clk 0:00:05.3]} 59. Kf3 {[%clk 0:00:21.6]} 59... Be1 {[%clk 0:00:05.1]}
60. g4 {[%clk 0:00:21.8]} 60... Rf2+ {[%clk 0:00:04.9]} 61. Ke3 {[%clk 0:00:22]}
61... Rg2 {[%clk 0:00:04.5]} 62. Ke4 {[%clk 0:00:22.3]} 62... Bd2 {[%clk
0:00:02.8]} 63. Kf5 {[%clk 0:00:22.3]} 63... Rf2 {[%clk 0:00:02.2]} 64. Rf6+
{[%clk 0:00:22.7]} 64... Ke7 {[%clk 0:00:02.3]} 65. Kg5 {[%clk 0:00:21.6]} 65...
Bc1 {[%clk 0:00:02.1]} 66. h6 {[%clk 0:00:21.7]} 66... Rf1 {[%clk 0:00:01.7]}
67. h7 {[%clk 0:00:19.9]} 67... Rh1 {[%clk 0:00:02.3]} 68. Rh6 {[%clk
0:00:19.8]} 68... Bxf4+ {[%clk 0:00:01.2]} 69. Kg6 {[%clk 0:00:15.4]} 69...
Rxh6+ {[%clk 0:00:01.8]} 70. Kg7 {[%clk 0:00:16.3]} 1-0